fUSD/lending_fUSD_20250109
["ID","MTS","AMOUNT","RATE_DAILY","PERIOD"]
[348211635,1736393438221,-500.0,9.997e-05,2]
[348211636,1736393438231,-500.0,9.997e-05,2]
[348211637,1736393438241,-500.0,9.997e-05,2]
[348211638,1736393438251,-927.53,9.997e-05,2]
[348211639,1736393438261,-500.0,9.997e-05,2]
[348211640,1736393438270,-500.0,9.997e-05,2]
[348211654,1736393438492,-500.0,9.997e-05,2]
[348211656,1736393438502,-500.0,9.997e-05,2]
[348211658,1736393438512,-311.0496,9.997e-05,2]
[348211660,1736393438521,-500.0,9.997e-05,2]
[348211662,1736393438531,-888.84,9.997e-05,2]
[348211664,1736393438540,-936.13,9.997e-05,2]
[348211666,1736393438550,-500.0,9.999e-05,2]
[348211668,1736393438564,-1106.27,9.999e-05,2]
[348211670,1736393438574,-1147.33,9.999e-05,2]
[348211672,1736393438584,-1498.60171808,9.999e-05,3]
[348211674,1736393438593,-603.73,9.999e-05,2]
[348211676,1736393438602,-640.11,9.999e-05,2]
[348211678,1736393438612,-500.0,9.999e-05,2]
[348211680,1736393438621,-1423.25,9.999e-05,2]
[348211682,1736393438631,-500.0,9.999e-05,2]
[348211684,1736393438640,-500.0,9.999e-05,2]
[348211686,1736393438650,-1050.41001152,9.999e-05,3]
[348211688,1736393438660,-500.0,9.999e-05,2]
[348211691,1736393438669,-500.0,9.999e-05,2]
[348211692,1736393438678,-500.0,9.999e-05,2]
[348211694,1736393438690,-925.21,9.999e-05,2]
[348211696,1736393438699,-500.0,9.999e-05,2]
[348211699,1736393438709,-500.0,9.999e-05,2]
[348211701,1736393438718,-500.0,9.999e-05,2]
[348211702,1736393438728,-800.1,9.999e-05,2]
[348211704,1736393438737,-500.0,9.999e-05,2]
[348211706,1736393438747,-500.0,9.999e-05,2]
[348211708,1736393438757,-500.0,9.999e-05,2]
[348211710,1736393438766,-500.0,9.999e-05,2]
[348211713,1736393438776,-500.0,9.999e-05,2]
[348211715,1736393438785,-500.0,9.999e-05,2]
[348211716,1736393438794,-594.28,9.999e-05,2]
[348211719,1736393438806,-2970.64,9.999e-05,2]
[348211721,1736393438816,-500.0,9.999e-05,2]
[348211723,1736393438826,-500.0,9.999e-05,2]
[348211725,1736393438835,-500.0,9.999e-05,2]
[348211727,1736393438845,-500.0,9.999e-05,2]
[348211729,1736393438854,-504.33252481,9.999e-05,2]
[348211731,1736393438863,-162.51093197,9.999e-05,2]
[348211733,1736393438873,-10611016.56352278,0.0001,2]
[348211761,1736393440015,-500.0,9.999e-05,2]
[348211762,1736393440024,-1549.89997072,0.0001,2]
[348211763,1736393440036,-273.1445,0.0001,2]
[348211764,1736393440047,-915.34000024,0.0001,2]
[348211765,1736393440250,-11933.08278253,0.0001,2]
[348211766,1736393440262,-13783.42851071,0.0001,2]
[348211767,1736393440274,-437.99897411,0.0001,2]
[348211768,1736393442829,-393.29595266,9.999e-05,2]
[348211769,1736393442841,-131.12115446,9.999e-05,2]
[348211770,1736393442850,-1632.97580459,0.0001,2]
[348211778,1736393446154,-500.0,9.999e-05,2]
[348211779,1736393446165,-500.0,9.999e-05,2]
[348211780,1736393446175,-93.40510922,0.0001,2]
[348211781,1736393446186,-10001.83332376,0.0001,2]
[348211946,1736393894195,889.53,8.219e-05,2]
[348211949,1736394356616,150.0,8.294e-05,2]
[348211950,1736394356663,150.0,6.872e-05,2]
[348211951,1736394357242,150.0,7.402e-05,2]
[348211952,1736394357285,150.0,7.411e-05,2]
[348211953,1736394416434,150.0,8.435e-05,2]
[348211954,1736394416490,150.0,8.253e-05,2]
[348211961,1736394476485,150.0,7.796e-05,2]
[348211968,1736394632186,-150.0,8.513e-05,2]
[348211969,1736394632196,-150.0,8.528e-05,2]
[348211970,1736394632205,-150.0,8.587e-05,2]
[348211971,1736394632214,-150.0,8.641e-05,2]
[348211972,1736394632223,-85.05424735,8.725e-05,2]
[348211973,1736394632235,-164.94575265,8.725e-05,2]
[348211974,1736394632244,-184.97,8.726e-05,2]
[348211975,1736394632253,-267.87,8.847e-05,2]
[348211976,1736394632262,-3000.000001,9e-05,2]
[348211977,1736394632271,-150.0,9e-05,2]
[348211978,1736394632280,-150.0,9e-05,2]
[348211979,1736394632290,-186.86799556,9e-05,2]
[348211980,1736394632299,-150.0,9.093e-05,2]
[348211981,1736394632309,-150.0,9.147e-05,2]
[348211982,1736394632318,-1338.07,9.219e-05,2]
[348211983,1736394632327,-150.0,9.253e-05,2]
[348211984,1736394632336,-200.0,9.255e-05,2]
[348211985,1736394632346,-150.0,9.39e-05,2]
[348211986,1736394632356,-150.0,9.406e-05,2]
[348211987,1736394632365,-972.37,9.423e-05,2]
[348211988,1736394632375,-150.0,9.452e-05,2]
[348211989,1736394632384,-250.0,9.462e-05,2]
[348211990,1736394632393,-10175.96221425,9.491e-05,2]
[348211991,1736394632405,-7105.29778575,9.491e-05,2]
[348211992,1736394632414,-1000.0,9.502e-05,2]
[348211993,1736394632423,-150.884025,9.799e-05,2]
[348211994,1736394632432,-155.242055,9.799e-05,2]
[348211995,1736394632442,-156.453334,9.799e-05,2]
[348211996,1736394632452,-150.0,9.862e-05,2]
[348211997,1736394632461,-206.94,9.889e-05,2]
[348211998,1736394632471,-14911.17576236,9.899e-05,2]
[348211999,1736394637556,-1000.0,9.201e-05,2]
[348212002,1736394637567,-29351.85703764,9.899e-05,2]
[348212003,1736394637576,-215.5316,9.899e-05,2]
[348212006,1736394637586,-5000.0,9.9e-05,2]
[348212008,1736394637596,-4110.72510895,9.972e-05,2]
[348212009,1736394637605,-4110.72510895,9.972e-05,2]
[348212011,1736394637615,-4110.72510895,9.98e-05,2]
[348212013,1736394637624,-3260.40601641,9.981e-05,2]
[348212015,1736394637634,-3260.40601641,9.982e-05,2]
[348212017,1736394637643,-4110.72510895,9.985e-05,2]
[348212018,1736394637652,-3260.40601641,9.987e-05,2]
[348212019,1736394637662,-3260.40601641,9.988e-05,2]
[348212020,1736394637671,-3260.40601641,9.988e-05,2]
[348212021,1736394637681,-3260.40601641,9.99e-05,2]
[348212022,1736394637690,-200.0,9.995e-05,2]
[348212023,1736394637700,-4110.72510895,9.996e-05,2]
[348212024,1736394637709,-2003.01959525,9.997e-05,2]
[348212045,1736394638109,-2107.7055137,9.997e-05,2]
[348212047,1736394638119,-500.0,9.998e-05,2]
[348212049,1736394638130,-500.0,9.998e-05,2]
[348212051,1736394638140,-500.0,9.998e-05,2]
[348212053,1736394638149,-500.0,9.998e-05,2]
[348212055,1736394638158,-500.0,9.998e-05,2]
[348212057,1736394638167,-500.0,9.998e-05,2]
[348212059,1736394638177,-500.0,9.998e-05,2]
[348212061,1736394638187,-590.93532367,9.998e-05,2]
[348212063,1736394638196,-500.0,9.998e-05,2]
[348212065,1736394638206,-397.23378857,9.998e-05,2]
[348212067,1736394638218,-102.76621143,9.998e-05,2]
[348212069,1736394638227,-500.0,9.998e-05,2]
[348212071,1736394638241,-509.07795206,9.998e-05,2]
[348212073,1736394638252,-500.0,9.998e-05,2]
[348212075,1736394638260,-331.62481969,9.998e-05,2]
[348212077,1736394638271,-168.37518031,9.998e-05,2]
[348212080,1736394638281,-500.0,9.998e-05,2]
[348212082,1736394638290,-500.0,9.998e-05,2]
[348212083,1736394638299,-500.0,9.998e-05,2]
[348212085,1736394638308,-500.0,9.998e-05,2]
[348212087,1736394638319,-500.0,9.998e-05,2]
[348212090,1736394638328,-500.0,9.998e-05,2]
[348212092,1736394638338,-500.0,9.998e-05,2]
[348212093,1736394638347,-500.0,9.998e-05,2]
[348212095,1736394638356,-500.0,9.998e-05,2]
[348212097,1736394638365,-500.0,9.998e-05,2]
[348212099,1736394638375,-500.0,9.998e-05,2]
[348212101,1736394638385,-500.0,9.998e-05,2]
[348212103,1736394638394,-500.0,9.998e-05,2]
[348212105,1736394638404,-500.0,9.998e-05,2]
[348212107,1736394638413,-507.0,9.998e-05,2]
[348212109,1736394638422,-500.0,9.998e-05,2]
[348212111,1736394638431,-500.0,9.998e-05,2]
[348212113,1736394638441,-500.0,9.998e-05,2]
[348212115,1736394638451,-500.0,9.998e-05,2]
[348212117,1736394638460,-500.0,9.998e-05,2]
[348212119,1736394638469,-500.0,9.998e-05,2]
[348212121,1736394638478,-500.0,9.998e-05,2]
[348212123,1736394638488,-500.0,9.998e-05,2]
[348212125,1736394638497,-500.0,9.998e-05,2]
[348212127,1736394638506,-500.0,9.998e-05,2]
[348212129,1736394638516,-500.0,9.998e-05,2]
[348212131,1736394638525,-500.0,9.998e-05,2]
[348212133,1736394638535,-500.0,9.998e-05,2]
[348212135,1736394638544,-500.0,9.998e-05,2]
[348212137,1736394638553,-500.0,9.998e-05,2]
[348212139,1736394638563,-500.0,9.998e-05,2]
[348212141,1736394638572,-500.0,9.998e-05,2]
[348212143,1736394638581,-500.0,9.998e-05,2]
[348212145,1736394638590,-500.0,9.998e-05,2]
[348212147,1736394638599,-500.0,9.998e-05,2]
[348212149,1736394638609,-500.0,9.998e-05,2]
[348212151,1736394638618,-500.0,9.998e-05,2]
[348212153,1736394638627,-500.0,9.998e-05,2]
[348212155,1736394638637,-500.0,9.998e-05,2]
[348212157,1736394638645,-500.0,9.998e-05,2]
[348212159,1736394638656,-500.0,9.998e-05,2]
[348212161,1736394638666,-500.0,9.998e-05,2]
[348212163,1736394638675,-500.0,9.998e-05,2]
[348212165,1736394638685,-500.43117394,9.998e-05,2]
[348212167,1736394638694,-407.1587737,9.998e-05,2]
[348212169,1736394638704,-500.0,9.998e-05,2]
[348212171,1736394638714,-317.95079969,9.998e-05,2]
[348212172,1736394638723,-502.55654369,9.998e-05,2]
[348212174,1736394638734,-500.0,9.998e-05,2]
[348212176,1736394638743,-500.0,9.998e-05,2]
[348212177,1736394638752,-500.0,9.998e-05,2]
[348212179,1736394638762,-500.0,9.998e-05,2]
[348212181,1736394638771,-500.0,9.998e-05,2]
[348212183,1736394638780,-500.0,9.998e-05,2]
[348212185,1736394638789,-500.0,9.998e-05,2]
[348212186,1736394638798,-500.0,9.998e-05,2]
[348212187,1736394638807,-500.0,9.998e-05,2]
[348212188,1736394638816,-502.83098358,9.998e-05,2]
[348212189,1736394638825,-500.0,9.998e-05,2]
[348212190,1736394638833,-504.89497595,9.998e-05,2]
[348212191,1736394638843,-500.0,9.998e-05,2]
[348212192,1736394638852,-159.33204049,9.998e-05,2]
[348212193,1736394638861,-445.80520274,9.998e-05,2]
[348212194,1736394638870,-256.41760065,9.998e-05,2]
[348212195,1736394638879,-502.8096191,9.998e-05,2]
[348212197,1736394638888,-500.0,9.998e-05,2]
[348212199,1736394638897,-613.17,9.998e-05,2]
[348212200,1736394638906,-500.0,9.998e-05,2]
[348212202,1736394638915,-500.83936407,9.998e-05,2]
[348212204,1736394638925,-503.31789078,9.998e-05,2]
[348212206,1736394638934,-500.0,9.998e-05,2]
[348212208,1736394638944,-495.05504803,9.998e-05,2]
[348212210,1736394638953,-505.1021206,9.998e-05,2]
[348212212,1736394638962,-500.0,9.998e-05,2]
[348212214,1736394638971,-502.21494017,9.998e-05,2]
[348212216,1736394638980,-503.20846297,9.998e-05,2]
[348212218,1736394638989,-503.45979706,9.998e-05,2]
[348212220,1736394638998,-500.0,9.998e-05,2]
[348212222,1736394639007,-500.0,9.998e-05,2]
[348212224,1736394639015,-500.0,9.998e-05,2]
[348212226,1736394639024,-407.93350704,9.998e-05,2]
[348212228,1736394639034,-500.0,9.998e-05,2]
[348212230,1736394639043,-501.17555334,9.998e-05,2]
[348212232,1736394639052,-500.0,9.998e-05,2]
[348212234,1736394639061,-3038.23,9.998e-05,2]
[348212236,1736394639071,-500.0,9.998e-05,2]
[348212238,1736394639081,-500.0,9.998e-05,2]
[348212240,1736394639090,-500.0,9.998e-05,2]
[348212242,1736394639099,-523.72344033,9.998e-05,2]
[348212244,1736394639108,-500.0,9.998e-05,2]
[348212246,1736394639117,-500.0,9.998e-05,2]
[348212248,1736394639127,-503.59347331,9.998e-05,2]
[348212250,1736394639139,-500.0,9.998e-05,2]
[348212252,1736394639147,-501.01800449,9.998e-05,2]
[348212253,1736394639156,-507.39221955,9.998e-05,2]
[348212255,1736394639165,-500.0,9.998e-05,2]
[348212257,1736394639174,-500.0,9.998e-05,2]
[348212259,1736394639184,-503.606729,9.998e-05,2]
[348212262,1736394639193,-504.20795198,9.998e-05,2]
[348212263,1736394639203,-500.0,9.998e-05,2]
[348212266,1736394639212,-501.07829918,9.998e-05,2]
[348212268,1736394639222,-500.0,9.998e-05,2]
[348212269,1736394639231,-500.0,9.998e-05,2]
[348212271,1736394639240,-500.0,9.998e-05,2]
[348212273,1736394639249,-500.0,9.998e-05,2]
[348212275,1736394639258,-500.0,9.998e-05,2]
[348212277,1736394639268,-500.0,9.998e-05,2]
[348212279,1736394639277,-527.27758482,9.998e-05,2]
[348212281,1736394639286,-500.0,9.998e-05,2]
[348212283,1736394639295,-500.0,9.998e-05,2]
[348212286,1736394639304,-502.54686632,9.998e-05,2]
[348212287,1736394639315,-1989.89,9.998e-05,2]
[348212290,1736394639329,-500.0,9.998e-05,2]
[348212291,1736394639341,-500.0,9.998e-05,2]
[348212293,1736394639350,-500.0,9.998e-05,2]
[348212295,1736394639359,-500.0,9.998e-05,2]
[348212297,1736394639368,-221.70140805,9.998e-05,2]
[348212299,1736394639378,-500.0,9.998e-05,2]
[348212301,1736394639387,-554.98468489,9.998e-05,2]
[348212303,1736394639396,-500.0,9.998e-05,2]
[348212305,1736394639405,-500.0,9.998e-05,2]
[348212307,1736394639415,-1635.27,9.998e-05,2]
[348212309,1736394639424,-1455.17,9.998e-05,2]
[348212311,1736394639433,-500.0,9.998e-05,2]
[348212313,1736394639443,-500.0,9.998e-05,2]
[348212315,1736394639452,-1078.9,9.998e-05,2]
[348212317,1736394639461,-504.2068801,9.998e-05,2]
[348212319,1736394639470,-500.0,9.998e-05,2]
[348212321,1736394639479,-504.55102955,9.998e-05,2]
[348212323,1736394639488,-500.0,9.998e-05,2]
[348212325,1736394639498,-500.0,9.998e-05,2]
[348212327,1736394639507,-500.0,9.998e-05,2]
[348212329,1736394639516,-1598.26,9.998e-05,2]
[348212331,1736394639525,-434.84373939,9.998e-05,2]
[348212333,1736394639534,-264.20581233,9.998e-05,2]
[348212335,1736394639543,-500.0,9.998e-05,2]
[348212337,1736394639553,-500.0,9.998e-05,2]
[348212339,1736394639563,-500.0,9.998e-05,2]
[348212341,1736394639573,-500.0,9.998e-05,2]
[348212343,1736394639583,-500.0,9.998e-05,2]
[348212345,1736394639592,-500.0,9.998e-05,2]
[348212347,1736394639603,-500.0,9.998e-05,2]
[348212349,1736394639612,-1829.03,9.998e-05,2]
[348212351,1736394639622,-500.0,9.998e-05,2]
[348212353,1736394639632,-504.64060006,9.998e-05,2]
[348212355,1736394639641,-502.73845964,9.998e-05,2]
[348212357,1736394639650,-500.0,9.998e-05,2]
[348212359,1736394639659,-500.0,9.998e-05,2]
[348212361,1736394639669,-504.0589438,9.998e-05,2]
[348212363,1736394639678,-1338.94,9.998e-05,2]
[348212365,1736394639687,-500.0,9.998e-05,2]
[348212367,1736394639696,-504.01278133,9.998e-05,2]
[348212369,1736394639705,-500.0,9.998e-05,2]
[348212371,1736394639715,-500.0,9.998e-05,2]
[348212372,1736394639724,-500.0,9.998e-05,2]
[348212375,1736394639734,-502.95801527,9.998e-05,2]
[348212376,1736394639745,-500.0,9.998e-05,2]
[348212379,1736394639754,-500.0,9.998e-05,2]
[348212381,1736394639764,-507.90148192,9.998e-05,2]
[348212383,1736394639773,-500.0,9.998e-05,2]
[348212385,1736394639783,-503.3508729,9.998e-05,2]
[348212387,1736394639792,-500.0,9.998e-05,2]
[348212389,1736394639801,-500.0,9.998e-05,2]
[348212391,1736394639811,-500.0,9.998e-05,2]
[348212393,1736394639821,-500.0,9.998e-05,2]
[348212395,1736394639831,-510.25151386,9.998e-05,2]
[348212397,1736394639840,-500.0,9.998e-05,2]
[348212399,1736394639849,-500.0,9.998e-05,2]
[348212401,1736394639859,-500.0,9.998e-05,2]
[348212403,1736394639868,-506.05278059,9.998e-05,2]
[348212405,1736394639878,-500.0,9.998e-05,2]
[348212407,1736394639887,-1190.14,9.998e-05,2]
[348212409,1736394639897,-284.2205425,9.998e-05,2]
[348212411,1736394639907,-500.0,9.998e-05,2]
[348212413,1736394639916,-889.93,9.998e-05,2]
[348212416,1736394639926,-506.57584545,9.998e-05,2]
[348212418,1736394639935,-500.0,9.998e-05,2]
[348212420,1736394639944,-503.56502583,9.998e-05,2]
[348212422,1736394639953,-500.0,9.998e-05,2]
[348212424,1736394639962,-500.98061561,9.998e-05,2]
[348212426,1736394639971,-500.0,9.998e-05,2]
[348212428,1736394639981,-500.0,9.998e-05,2]
[348212430,1736394639990,-500.0,9.998e-05,2]
[348212432,1736394640000,-1168.16,9.998e-05,2]
[348212434,1736394640010,-500.0,9.998e-05,2]
[348212436,1736394640019,-500.0,9.998e-05,2]
[348212438,1736394640028,-622.84,9.998e-05,2]
[348212440,1736394640037,-660.94,9.998e-05,2]
[348212462,1736394640241,-500.0,9.998e-05,2]
[348212464,1736394640251,-227.49268054,9.998e-05,2]
[348212466,1736394640261,-500.0,9.998e-05,2]
[348212469,1736394640271,-500.0,9.998e-05,2]
[348212471,1736394640280,-500.0,9.998e-05,2]
[348212472,1736394640290,-500.0,9.998e-05,2]
[348212474,1736394640299,-500.0,9.998e-05,2]
[348212476,1736394640308,-504.01781334,9.998e-05,2]
[348212479,1736394640318,-493.0792018,9.998e-05,2]
[348212480,1736394640328,-500.0,9.998e-05,2]
[348212482,1736394640337,-547.55,9.998e-05,2]
[348212484,1736394640346,-500.0,9.998e-05,2]
[348212486,1736394640355,-500.0,9.998e-05,2]
[348212488,1736394640364,-500.0,9.998e-05,2]
[348212490,1736394640373,-500.0,9.998e-05,2]
[348212492,1736394640383,-624.56,9.998e-05,2]
[348212494,1736394640391,-1444.08,9.998e-05,2]
[348212496,1736394640400,-503.22923189,9.998e-05,2]
[348212498,1736394640409,-502.18426489,9.998e-05,2]
[348212500,1736394640419,-503.31675182,9.998e-05,2]
[348212502,1736394640428,-500.0,9.998e-05,2]
[348212504,1736394640437,-500.0,9.998e-05,2]
[348212506,1736394640446,-500.0,9.998e-05,2]
[348212508,1736394640455,-501.99336724,9.998e-05,2]
[348212510,1736394640464,-500.0,9.998e-05,2]
[348212512,1736394640473,-504.44689587,9.998e-05,2]
[348212514,1736394640482,-367.48733101,9.998e-05,2]
[348212516,1736394640491,-500.0,9.998e-05,2]
[348212518,1736394640500,-502.87979702,9.998e-05,2]
[348212520,1736394640509,-500.0,9.998e-05,2]
[348212522,1736394640519,-500.0,9.998e-05,2]
[348212524,1736394640528,-500.0,9.998e-05,2]
[348212526,1736394640537,-500.0,9.998e-05,2]
[348212528,1736394640546,-500.0,9.998e-05,2]
[348212530,1736394640555,-500.0,9.998e-05,2]
[348212532,1736394640564,-500.0,9.998e-05,2]
[348212534,1736394640574,-500.0,9.998e-05,2]
[348212536,1736394640583,-505.41338267,9.998e-05,2]
[348212537,1736394640591,-500.0,9.998e-05,2]
[348212538,1736394640600,-515.16289638,9.998e-05,2]
[348212539,1736394640609,-507.47424146,9.998e-05,2]
[348212540,1736394640618,-500.0,9.998e-05,2]
[348212541,1736394640627,-530.58961528,9.998e-05,2]
[348212542,1736394640636,-504.36902386,9.998e-05,2]
[348212543,1736394640644,-504.90488899,9.998e-05,2]
[348212544,1736394640653,-422.14860609,9.998e-05,2]
[348212546,1736394640662,-504.18316484,9.998e-05,2]
[348212548,1736394640671,-500.0,9.998e-05,2]
[348212550,1736394640681,-569.11602522,9.998e-05,2]
[348212551,1736394640690,-500.0,9.998e-05,2]
[348212553,1736394640700,-500.0,9.998e-05,2]
[348212555,1736394640708,-500.0,9.998e-05,2]
[348212557,1736394640717,-500.0,9.998e-05,2]
[348212559,1736394640726,-504.70464923,9.998e-05,2]
[348212561,1736394640735,-946.04,9.998e-05,2]
[348212563,1736394640744,-500.0,9.998e-05,2]
[348212565,1736394640753,-500.0,9.998e-05,2]
[348212567,1736394640762,-507.44439631,9.998e-05,2]
[348212569,1736394640771,-500.0,9.998e-05,2]
[348212571,1736394640780,-505.39133589,9.998e-05,2]
[348212573,1736394640789,-500.0,9.998e-05,2]
[348212575,1736394640798,-500.0,9.998e-05,2]
[348212577,1736394640807,-500.0,9.998e-05,2]
[348212579,1736394640816,-500.0,9.998e-05,2]
[348212581,1736394640826,-500.0,9.998e-05,2]
[348212583,1736394640835,-500.0,9.998e-05,2]
[348212585,1736394640844,-982.73,9.998e-05,2]
[348212587,1736394640853,-324.4547061,9.998e-05,2]
[348212589,1736394640862,-500.0,9.998e-05,2]
[348212591,1736394640871,-500.0,9.998e-05,2]
[348212593,1736394640882,-500.0,9.998e-05,2]
[348212595,1736394640892,-500.0,9.998e-05,2]
[348212597,1736394640901,-500.0,9.998e-05,2]
[348212599,1736394640910,-646.72,9.998e-05,2]
[348212601,1736394640920,-820.93,9.998e-05,2]
[348212603,1736394640929,-602.4912939,9.998e-05,2]
[348212605,1736394640938,-500.0,9.998e-05,2]
[348212607,1736394640947,-504.22667459,9.998e-05,2]
[348212608,1736394640957,-88548.50150821,9.999e-05,2]
[348212611,1736394640966,-1274.5058648,9.999e-05,3]
[348212613,1736394640975,-1274.5058648,9.999e-05,3]
[348212614,1736394640984,-396.70948976,9.999e-05,2]
[348212616,1736394640993,-205.32223002,9.999e-05,2]
[348212618,1736394641004,-500.0,9.999e-05,2]
[348212621,1736394641015,-500.0,9.999e-05,2]
[348212623,1736394641025,-500.0,9.999e-05,2]
[348212624,1736394641035,-500.0,9.999e-05,2]
[348212626,1736394641044,-500.0,9.999e-05,2]
[348212628,1736394641052,-191.91546759,9.999e-05,2]
[348212630,1736394641061,-500.0,9.999e-05,2]
[348212632,1736394641070,-500.0,9.999e-05,2]
[348212634,1736394641078,-332.64770835,9.999e-05,2]
[348212636,1736394641086,-500.0,9.999e-05,2]
[348212638,1736394641095,-500.0,9.999e-05,2]
[348212640,1736394641103,-500.0,9.999e-05,2]
[348212642,1736394641111,-500.0,9.999e-05,2]
[348212644,1736394641121,-500.0,9.999e-05,2]
[348212646,1736394641132,-500.0,9.999e-05,2]
[348212648,1736394641141,-504.57725706,9.999e-05,2]
[348212650,1736394641150,-507.02323531,9.999e-05,2]
[348212652,1736394641159,-500.0,9.999e-05,2]
[348212654,1736394641168,-500.0,9.999e-05,2]
[348212655,1736394641177,-500.0,9.999e-05,2]
[348212657,1736394641186,-533.22,9.999e-05,2]
[348212659,1736394641195,-500.0,9.999e-05,2]
[348212661,1736394641204,-513.44790389,9.999e-05,2]
[348212663,1736394641214,-500.0,9.999e-05,2]
[348212666,1736394641225,-503.38542342,9.999e-05,2]
[348212667,1736394641234,-601.27145143,9.999e-05,2]
[348212670,1736394641243,-500.0,9.999e-05,2]
[348212672,1736394641253,-500.0,9.999e-05,2]
[348212674,1736394641262,-516.4305459,9.999e-05,2]
[348212676,1736394641271,-500.0,9.999e-05,2]
[348212677,1736394641280,-500.0,9.999e-05,2]
[348212679,1736394641289,-500.0,9.999e-05,2]
[348212681,1736394641298,-500.0,9.999e-05,2]
[348212683,1736394641307,-500.0,9.999e-05,2]
[348212685,1736394641317,-986.39,9.999e-05,2]
[348212687,1736394641327,-500.0,9.999e-05,2]
[348212689,1736394641336,-503.12976115,9.999e-05,2]
[348212691,1736394641345,-579.74711105,9.999e-05,2]
[348212693,1736394641354,-505.68357027,9.999e-05,2]
[348212695,1736394641363,-500.0,9.999e-05,2]
[348212697,1736394641372,-500.30540941,9.999e-05,2]
[348212699,1736394641381,-505.8630033,9.999e-05,2]
[348212701,1736394641390,-495.33332257,9.999e-05,2]
[348212703,1736394641399,-500.0,9.999e-05,2]
[348212705,1736394641408,-500.0,9.999e-05,2]
[348212707,1736394641417,-871.89,9.999e-05,2]
[348212709,1736394641427,-505.11434079,9.999e-05,2]
[348212711,1736394641436,-502.21587983,9.999e-05,2]
[348212713,1736394641445,-504.77860858,9.999e-05,2]
[348212714,1736394641454,-500.0,9.999e-05,2]
[348212716,1736394641463,-500.0,9.999e-05,2]
[348212718,1736394641472,-500.0,9.999e-05,2]
[348212719,1736394641481,-501.90392986,9.999e-05,2]
[348212721,1736394641490,-515.98,9.999e-05,2]
[348212723,1736394641499,-615.37225767,9.999e-05,2]
[348212725,1736394641509,-516.77387237,9.999e-05,2]
[348212726,1736394641518,-504.46595031,9.999e-05,2]
[348212728,1736394641527,-500.0,9.999e-05,2]
[348212730,1736394641536,-501.32580398,9.999e-05,2]
[348212731,1736394641545,-502.64508452,9.999e-05,2]
[348212733,1736394641555,-509.98666122,9.999e-05,2]
[348212735,1736394641565,-500.0,9.999e-05,2]
[348212737,1736394641575,-501.68593503,9.999e-05,2]
[348212738,1736394641583,-582.69589797,9.999e-05,2]
[348212740,1736394641593,-500.0,9.999e-05,2]
[348212741,1736394641602,-500.0,9.999e-05,2]
[348212743,1736394641611,-500.0,9.999e-05,2]
[348212745,1736394641620,-500.71859527,9.999e-05,2]
[348212747,1736394641629,-767.61,9.999e-05,2]
[348212748,1736394641639,-502.13144208,9.999e-05,2]
[348212750,1736394641648,-500.68725825,9.999e-05,2]
[348212752,1736394641657,-500.0,9.999e-05,2]
[348212754,1736394641667,-500.0,9.999e-05,2]
[348212755,1736394641677,-500.91597606,9.999e-05,2]
[348212757,1736394641686,-521.56850344,9.999e-05,2]
[348212759,1736394641696,-512.04129746,9.999e-05,2]
[348212761,1736394641705,-502.71393413,9.999e-05,2]
[348212763,1736394641715,-502.75240996,9.999e-05,2]
[348212764,1736394641724,-520.99789127,9.999e-05,2]
[348212766,1736394641733,-500.0,9.999e-05,2]
[348212768,1736394641743,-508.80367151,9.999e-05,2]
[348212769,1736394641752,-500.0,9.999e-05,2]
[348212771,1736394641761,-500.0,9.999e-05,2]
[348212773,1736394641771,-500.0,9.999e-05,2]
[348212774,1736394641780,-500.0,9.999e-05,2]
[348212776,1736394641789,-500.56444789,9.999e-05,2]
[348212778,1736394641798,-503.46963081,9.999e-05,2]
[348212779,1736394641807,-500.0,9.999e-05,2]
[348212781,1736394641818,-500.0,9.999e-05,2]
[348212783,1736394641828,-500.0,9.999e-05,2]
[348212785,1736394641838,-502.83631306,9.999e-05,2]
[348212787,1736394641847,-500.0,9.999e-05,2]
[348212788,1736394641856,-500.0,9.999e-05,2]
[348212790,1736394641865,-502.11329343,9.999e-05,2]
[348212792,1736394641874,-500.0,9.999e-05,2]
[348212793,1736394641883,-500.0,9.999e-05,2]